fUSD/lending_fUSD_20260516
["ID","MTS","AMOUNT","RATE_DAILY","PERIOD"]
[422350781,1778863834000,-500.0,0.00014799,2]
[422350773,1778863834000,-500.0,0.00014799,2]
[422350770,1778863834000,-500.0,0.00014799,2]
[422350771,1778863834000,-500.0,0.00014799,2]
[422350768,1778863834000,-285.37659664,0.00014799,2]
[422350769,1778863834000,-500.0,0.00014799,2]
[422350772,1778863834000,-506.14328985,0.00014799,2]
[422350776,1778863834000,-500.0,0.00014799,2]
[422350785,1778863835000,-43800.82352633,0.000148,2]
[422350822,1778863838000,-1000.0,0.0001497,2]
[422350824,1778863838000,-1000.0,0.0001497,2]
[422350826,1778863838000,-2000.0,0.00014983,2]
[422350825,1778863838000,-1215.46028509,0.0001497,2]
[422350835,1778863838000,-2833.9095759,0.00014996,2]
[422350818,1778863838000,-500.0,0.0001497,2]
[422350817,1778863838000,-500.0,0.0001497,2]
[422350816,1778863838000,-500.0,0.0001497,2]
[422350819,1778863838000,-689.73790928,0.0001497,2]
[422350815,1778863838000,-500.0,0.0001497,2]
[422350827,1778863838000,-1088.35,0.00014985,2]
[422350833,1778863838000,-949.807276,0.00014996,2]
[422350828,1778863838000,-851.64,0.00014985,2]
[422350832,1778863838000,-60734.4633121,0.00014996,2]
[422350830,1778863838000,-500.0,0.00014986,2]
[422350829,1778863838000,-529.57,0.00014985,2]
[422350831,1778863838000,-915.2512116,0.0001499,2]
[422350813,1778863838000,-500.0,0.0001497,2]
[422350834,1778863838000,-1019.4326397,0.00014996,2]
[422350836,1778863838000,-2890.4360187,0.00014996,2]
[422350841,1778863838000,-151.0,0.00014997,2]
[422350838,1778863838000,-20579.8785964,0.00014996,2]
[422350840,1778863838000,-295617.454717,0.00014996,2]
[422350823,1778863838000,-1000.0,0.0001497,2]
[422350811,1778863838000,-605.0,0.00014959,2]
[422350805,1778863838000,-500.0,0.00014899,2]
[422350821,1778863838000,-1000.0,0.0001497,2]
[422350788,1778863838000,-208.38824723,0.00013318,2]
[422350791,1778863838000,-500.0,0.00014749,2]
[422350792,1778863838000,-1115662.01332231,0.000148,2]
[422350793,1778863838000,-341.41,0.000148,2]
[422350790,1778863838000,-500.0,0.00014749,2]
[422350789,1778863838000,-208.6780413,0.000147,2]
[422350794,1778863838000,-2117.60927505,0.000148,2]
[422350797,1778863838000,-1680.0,0.0001482,2]
[422350796,1778863838000,-210.0,0.0001482,2]
[422350795,1778863838000,-183.378,0.00014805,2]
[422350798,1778863838000,-2117.60927505,0.00014833,2]
[422350814,1778863838000,-500.0,0.0001497,2]
[422350801,1778863838000,-2117.60927505,0.00014867,2]
[422350807,1778863838000,-29367.836,0.000149,2]
[422350802,1778863838000,-162.0,0.0001488,2]
[422350804,1778863838000,-915.2512116,0.0001489,2]
[422350806,1778863838000,-2000.0,0.000149,2]
[422350799,1778863838000,-500.0,0.00014844,2]
[422350803,1778863838000,-200.0,0.0001488,2]
[422350808,1778863838000,-2117.60927505,0.000149,2]
[422350810,1778863838000,-156.6761228,0.00014942,2]
[422350809,1778863838000,-153.53198692,0.000149,2]
[422350820,1778863838000,-1000.0,0.0001497,2]
[422350812,1778863838000,-500.0,0.0001497,2]
[422350800,1778863838000,-29964.16918207,0.0001485,2]
[422350846,1778863838000,-697.49,0.00014999,2]
[422350872,1778863838000,-621.93,0.00014999,2]
[422350845,1778863838000,-697.49,0.00014999,2]
[422350901,1778863838000,-500.0,0.00014999,2]
[422350911,1778863838000,-500.0,0.00014999,2]
[422350913,1778863838000,-500.0,0.00014999,2]
[422350919,1778863838000,-500.0,0.00014999,2]
[422350915,1778863838000,-500.0,0.00014999,2]
[422350917,1778863838000,-500.0,0.00014999,2]
[422350923,1778863838000,-500.0,0.00014999,2]
[422350921,1778863838000,-500.0,0.00014999,2]
[422350925,1778863838000,-500.0,0.00014999,2]
[422350903,1778863838000,-500.0,0.00014999,2]
[422350905,1778863838000,-500.0,0.00014999,2]
[422350907,1778863838000,-500.0,0.00014999,2]
[422350937,1778863838000,-500.0,0.00014999,2]
[422350927,1778863838000,-500.0,0.00014999,2]
[422350939,1778863838000,-500.0,0.00014999,2]
[422350941,1778863838000,-500.0,0.00014999,2]
[422350943,1778863838000,-500.0,0.00014999,2]
[422350944,1778863838000,-500.0,0.00014999,2]
[422350933,1778863838000,-500.0,0.00014999,2]
[422350935,1778863838000,-500.0,0.00014999,2]
[422350929,1778863838000,-500.0,0.00014999,2]
[422350931,1778863838000,-500.0,0.00014999,2]
[422350837,1778863838000,-1003.9785651,0.00014996,2]
[422350899,1778863838000,-500.0,0.00014999,2]
[422350886,1778863838000,-500.0,0.00014999,2]
[422350909,1778863838000,-500.0,0.00014999,2]
[422350891,1778863838000,-500.0,0.00014999,2]
[422350843,1778863838000,-697.49,0.00014999,2]
[422350888,1778863838000,-500.0,0.00014999,2]
[422350839,1778863838000,-256952.4408915,0.00014996,2]
[422350842,1778863838000,-151.0,0.00014997,2]
[422350844,1778863838000,-697.49,0.00014999,2]
[422350861,1778863838000,-621.93,0.00014999,2]
[422350848,1778863838000,-697.49,0.00014999,2]
[422350850,1778863838000,-697.49,0.00014999,2]
[422350857,1778863838000,-697.6847041,0.00014999,2]
[422350869,1778863838000,-621.93,0.00014999,2]
[422350859,1778863838000,-621.93,0.00014999,2]
[422350865,1778863838000,-621.93,0.00014999,2]
[422350863,1778863838000,-621.93,0.00014999,2]
[422350882,1778863838000,-500.0,0.00014999,2]
[422350855,1778863838000,-697.49,0.00014999,2]
[422350852,1778863838000,-697.49,0.00014999,2]
[422350878,1778863838000,-500.0,0.00014999,2]
[422350880,1778863838000,-500.0,0.00014999,2]
[422350893,1778863838000,-500.0,0.00014999,2]
[422350876,1778863838000,-621.98987748,0.00014999,2]
[422350897,1778863838000,-500.0,0.00014999,2]
[422350874,1778863838000,-621.93,0.00014999,2]
[422350884,1778863838000,-500.0,0.00014999,2]
[422350867,1778863838000,-621.93,0.00014999,2]
[422350895,1778863838000,-500.0,0.00014999,2]
[422351044,1778863839000,-219.95,0.000155,2]
[422351046,1778863839000,-621.74470057,0.00015613,2]
[422351017,1778863839000,-197.207142,0.00015068,2]
[422351035,1778863839000,-3277.45729639,0.00015323,2]
[422351033,1778863839000,-461.56,0.000153,2]
[422351029,1778863839000,-151.0,0.000152,2]
[422351027,1778863839000,-2054.00676345,0.00015179,2]
[422351025,1778863839000,-155.4004484,0.00015118,2]
[422351021,1778863839000,-197.207142,0.00015068,2]
[422351023,1778863839000,-197.207142,0.00015068,2]
[422351019,1778863839000,-197.207142,0.00015068,2]
[422351037,1778863839000,-180.27312146,0.00015419,2]
[422351031,1778863839000,-5000.01,0.00015209,2]
[422351048,1778863839000,-160.16,0.00015781,2]
[422351082,1778863839000,-926.0,0.000163,2]
[422351039,1778863839000,-476.53,0.00015464,2]
[422351041,1778863839000,-4630.77,0.00015464,2]
[422351050,1778863839000,-161.81,0.00016,2]
[422351054,1778863839000,-161.81,0.00016,2]
[422351056,1778863839000,-161.81,0.00016,2]
[422351058,1778863839000,-161.81,0.00016,2]
[422351062,1778863839000,-161.81,0.00016,2]
[422351068,1778863839000,-461.44,0.00016145,2]
[422351064,1778863839000,-161.83,0.00016,2]
[422351066,1778863839000,-300.0,0.00016,2]
[422351080,1778863839000,-625.0,0.000163,2]
[422351070,1778863839000,-1467.0,0.00016233,5]
[422351015,1778863839000,-15000.0,0.00015026,2]
[422351052,1778863839000,-161.81,0.00016,2]
[422351013,1778863839000,-5000.01,0.0001502,2]
[422350966,1778863839000,-499.999999,0.00015,2]
[422351011,1778863839000,-151.0,0.00015,2]
[422350948,1778863839000,-500.0,0.00014999,2]
[422350946,1778863839000,-500.0,0.00014999,2]
[422350950,1778863839000,-500.0,0.00014999,2]
[422350952,1778863839000,-500.0,0.00014999,2]
[422350955,1778863839000,-500.0,0.00014999,2]
[422350968,1778863839000,-15773.20812864,0.00015,7]
[422350972,1778863839000,-151.0,0.00015,2]
[422350970,1778863839000,-2030.0,0.00015,2]
[422350974,1778863839000,-151.0,0.00015,2]
[422350959,1778863839000,-500.0,0.00014999,2]
[422350957,1778863839000,-500.0,0.00014999,2]
[422350976,1778863839000,-151.0,0.00015,2]
[422350961,1778863839000,-531.58948672,0.00014999,2]
[422350963,1778863839000,-3027147.32404408,0.00015,2]
[422350978,1778863839000,-151.0,0.00015,2]
[422350992,1778863839000,-356.273201,0.00015,2]
[422350991,1778863839000,-356.273201,0.00015,2]
[422350980,1778863839000,-151.0,0.00015,2]
[422350994,1778863839000,-356.273201,0.00015,2]
[422350996,1778863839000,-243.802444,0.00015,2]
[422350999,1778863839000,-243.802444,0.00015,2]
[422350989,1778863839000,-356.273201,0.00015,2]
[422350982,1778863839000,-151.0,0.00015,2]
[422350986,1778863839000,-151.0,0.00015,2]
[422350984,1778863839000,-151.0,0.00015,2]
[422351001,1778863839000,-243.802444,0.00015,2]
[422351003,1778863839000,-243.802444,0.00015,2]
[422351005,1778863839000,-151.0,0.00015,2]
[422351009,1778863839000,-151.0,0.00015,2]
[422351007,1778863839000,-151.0,0.00015,2]
[422351074,1778863839000,-1545.0,0.00016233,5]
[422351060,1778863839000,-161.81,0.00016,2]
[422351078,1778863839000,-3542.0,0.000163,2]
[422351153,1778863839000,-174.61919141,0.00017008,2]
[422351147,1778863839000,-151.0,0.00017008,2]
[422351155,1778863839000,-601.3376128,0.00017008,2]
[422351142,1778863839000,-578.20924308,0.00017008,2]
[422351145,1778863839000,-1191.11104075,0.00017008,2]
[422351151,1778863839000,-200.0,0.00017008,2]
[422351159,1778863839000,-500.0,0.00017008,2]
[422351157,1778863839000,-151.0,0.00017008,2]
[422351165,1778863839000,-151.0,0.00017008,2]
[422351164,1778863839000,-500.0,0.00017008,2]
[422351167,1778863839000,-151.0,0.00017008,2]
[422351161,1778863839000,-151.0,0.00017008,2]
[422351173,1778863839000,-500.0,0.00017008,2]
[422351169,1778863839000,-500.0,0.00017008,2]
[422351177,1778863839000,-500.0,0.00017008,2]
[422351183,1778863839000,-500.0,0.00017008,2]
[422351182,1778863839000,-151.0,0.00017008,2]
[422351175,1778863839000,-151.0,0.00017008,2]
[422351180,1778863839000,-151.0,0.00017008,2]
[422351171,1778863839000,-151.0,0.00017008,2]
[422351185,1778863839000,-500.0,0.00017008,2]
[422351187,1778863839000,-500.0,0.00017008,2]
[422351189,1778863839000,-500.0,0.00017008,2]
[422351191,1778863839000,-500.0,0.00017008,2]
[422351193,1778863839000,-174.61919141,0.00017008,2]
[422351198,1778863839000,-151.0,0.00017008,2]
[422351200,1778863839000,-151.0,0.00017008,2]
[422351202,1778863839000,-151.0,0.00017008,2]
[422351072,1778863839000,-1548.0,0.00016233,5]
[422351149,1778863839000,-5424.35489075,0.00017008,2]
[422351140,1778863839000,-666.0,0.00017007,2]
[422351196,1778863839000,-690.85750221,0.00017008,2]
[422351136,1778863839000,-183.9169181,0.00017007,2]
[422351138,1778863839000,-300.0,0.00017007,2]
[422351077,1778863839000,-1354.0,0.000163,2]
[422351076,1778863839000,-666.0,0.00016299,2]
[422351084,1778863839000,-1270.0,0.000163,2]
[422351095,1778863839000,-228.05271357,0.00016403,2]
[422351097,1778863839000,-445.17061352,0.00016421,2]
[422351086,1778863839000,-281.15,0.000163,2]
[422351088,1778863839000,-1223.0,0.000163,2]
[422351090,1778863839000,-930.0,0.000163,2]
[422351091,1778863839000,-3631.0,0.000163,2]
[422351099,1778863839000,-1312.1,0.00016438,2]
[422351101,1778863839000,-151.0,0.00016438,2]
[422351093,1778863839000,-2209.0,0.00016302,2]
[422351105,1778863839000,-151.0,0.00016438,2]
[422351103,1778863839000,-151.0,0.00016438,2]
[422351075,1778863839000,-300.0,0.00016299,2]
[422351109,1778863839000,-151.0,0.00016438,2]
[422351107,1778863839000,-151.0,0.00016438,2]
[422351121,1778863839000,-180.12,0.00016438,2]
[422351131,1778863839000,-461.45,0.0001677,2]
[422351111,1778863839000,-151.0,0.00016438,2]
[422351119,1778863839000,-270.18,0.00016438,2]
[422351123,1778863839000,-200.0,0.00016467,2]
[422351134,1778863839000,-300.0,0.00017007,2]
[422351125,1778863839000,-341.41,0.000165,2]
[422351113,1778863839000,-151.0,0.00016438,2]
[422351127,1778863839000,-883.0,0.000165,2]
[422351115,1778863839000,-151.0,0.00016438,2]
[422351129,1778863839000,-2000.0,0.00016648,2]
[422351117,1778863839000,-151.0,0.00016438,2]
[422351132,1778863839000,-214.997284,0.00017,7]
[422351276,1778863840000,-151.0,0.00017393,2]
[422351267,1778863840000,-151.0,0.00017173,2]
[422351269,1778863840000,-151.0,0.00017228,2]
[422351263,1778863840000,-1000.0,0.000171,2]
[422351274,1778863840000,-151.0,0.00017338,2]
[422351287,1778863840000,-181.08010149,0.00017556,2]
[422351283,1778863840000,-1235.18214925,0.00017556,2]
[422351291,1778863840000,-1798.80895522,0.00017556,2]
[422351285,1778863840000,-200.0,0.00017556,2]
[422351277,1778863840000,-185.91664692,0.00017448,2]
[422351265,1778863840000,-151.0,0.00017118,2]
[422351271,1778863840000,-151.0,0.00017283,2]
[422351306,1778863840000,-2757.0,0.00017686,2]
[422351279,1778863840000,-314.0,0.000175,2]
[422351289,1778863840000,-181.08010149,0.00017556,2]
[422351293,1778863840000,-599.60298507,0.00017556,2]
[422351295,1778863840000,-181.08010149,0.00017556,2]
[422351297,1778863840000,-151.0,0.00017556,2]
[422351307,1778863840000,-174.08,0.000177,2]
[422351302,1778863840000,-601.0,0.00017683,2]
[422351300,1778863840000,-1591.79,0.00017572,2]
[422351314,1778863840000,-165.885,0.000177,2]
[422351310,1778863840000,-150.116,0.000177,2]
[422351249,1778863840000,-151.0,0.00017008,2]
[422351312,1778863840000,-250.0,0.000177,2]
[422351281,1778863840000,-510.0,0.0001754,2]
[422351251,1778863840000,-151.0,0.00017008,2]
[422351231,1778863840000,-151.0,0.00017008,2]
[422351245,1778863840000,-151.0,0.00017008,2]
[422351304,1778863840000,-546.0,0.00017686,2]
[422351205,1778863840000,-151.0,0.00017008,2]
[422351204,1778863840000,-174.61919141,0.00017008,2]
[422351207,1778863840000,-152.0,0.00017008,2]
[422351213,1778863840000,-152.0,0.00017008,2]
[422351209,1778863840000,-151.0,0.00017008,2]
[422351211,1778863840000,-1734.62772924,0.00017008,2]
[422351215,1778863840000,-151.0,0.00017008,2]
[422351225,1778863840000,-151.0,0.00017008,2]
[422351227,1778863840000,-151.0,0.00017008,2]
[422351229,1778863840000,-152.0,0.00017008,2]
[422351233,1778863840000,-151.0,0.00017008,2]
[422351217,1778863840000,-152.0,0.00017008,2]
[422351219,1778863840000,-151.0,0.00017008,2]
[422351221,1778863840000,-578.20924308,0.00017008,2]
[422351237,1778863840000,-151.0,0.00017008,2]
[422351239,1778863840000,-151.0,0.00017008,2]
[422351223,1778863840000,-152.0,0.00017008,2]
[422351235,1778863840000,-151.0,0.00017008,2]
[422351254,1778863840000,-151.0,0.00017008,2]
[422351256,1778863840000,-151.0,0.00017008,2]
[422351241,1778863840000,-151.0,0.00017008,2]
[422351259,1778863840000,-151.0,0.00017063,2]
[422351243,1778863840000,-174.61919141,0.00017008,2]
[422351247,1778863840000,-151.0,0.00017008,2]
[422351261,1778863840000,-308.0,0.000171,2]
[422351316,1778863840000,-242.781,0.000177,2]
[422351338,1778863840000,-206.78,0.00017728,2]
[422351318,1778863840000,-150.833,0.000177,2]
[422351401,1778863840000,-1604.85278,0.0001881,2]
[422351405,1778863840000,-1604.85279,0.0001881,2]
[422351391,1778863840000,-388.5,0.00018737,2]
[422351393,1778863840000,-500.0,0.00018746,2]
[422351395,1778863840000,-300.0,0.00018809,2]
[422351403,1778863840000,-1604.85278,0.0001881,2]
[422351397,1778863840000,-1604.85278,0.0001881,2]
[422351410,1778863840000,-200.0,0.00018847,2]
[422351408,1778863840000,-1604.85278,0.0001881,2]
[422351412,1778863840000,-250.85468374,0.00018849,2]
[422351416,1778863840000,-500.0,0.00018874,2]
[422351418,1778863840000,-235.0,0.00018963,2]
[422351400,1778863840000,-1604.85279,0.0001881,2]
[422351420,1778863840000,-500.0,0.0001897,2]
[422351425,1778863840000,-300.0,0.00018999,2]
[422351422,1778863840000,-1000.0,0.0001897,2]
[422351434,1778863840000,-1000.0,0.00019,2]
[422351429,1778863840000,-666.0,0.00018999,2]
[422351431,1778863840000,-230.0,0.00019,4]
[422351436,1778863840000,-1000.0,0.00019,2]
[422351440,1778863840000,-365.84198012,0.00019,2]
[422351438,1778863840000,-151.0,0.00019,2]
[422351444,1778863840000,-119031.83675866,0.00019,2]
[422351442,1778863840000,-868.53800151,0.00019,2]
[422351320,1778863840000,-150.716,0.000177,2]
[422351446,1778863840000,-227.0,0.00019019,2]
[422351427,1778863840000,-300.0,0.00018999,2]
[422351389,1778863840000,-1591.79,0.0001872,2]
[422351414,1778863840000,-232.0,0.00018854,2]
[422351372,1778863840000,-500.0,0.00018472,2]
[422351322,1778863840000,-150.0,0.000177,2]
[422351381,1778863840000,-1328.27659266,0.00018652,2]
[422351333,1778863840000,-150.0,0.00017709,2]
[422351335,1778863840000,-150.99,0.00017728,2]
[422351340,1778863840000,-255.02,0.00017766,2]
[422351350,1778863840000,-350.0,0.00018,2]
[422351352,1778863840000,-1280.88388878,0.00018104,2]
[422351354,1778863840000,-200.0,0.00018104,2]
[422351343,1778863840000,-151.0,0.00017808,2]
[422351356,1778863840000,-1865.36488657,0.00018104,2]
[422351360,1778863840000,-165.15888528,0.000182,2]
[422351346,1778863840000,-702.0,0.00017851,2]
[422351357,1778863840000,-187.78006525,0.00018104,2]
[422351341,1778863840000,-169.21,0.00017803,2]
[422351387,1778863840000,-194.72792766,0.00018652,2]
[422351362,1778863840000,-341.41,0.000182,2]
[422351374,1778863840000,-150.0,0.00018492,2]
[422351383,1778863840000,-200.0,0.00018652,2]
[422351385,1778863840000,-1934.38338737,0.00018652,2]
[422351366,1778863840000,-181.08010149,0.00018377,2]
[422351378,1778863840000,-350.0,0.00018592,3]
[422351376,1778863840000,-167.12947964,0.00018572,2]
[422351368,1778863840000,-165.15888528,0.000184,2]
[422351364,1778863840000,-2000.0,0.00018313,2]
[422351348,1778863840000,-165.15888528,0.00018,2]
[422351370,1778863840000,-1312.1,0.0001841,2]
[422351534,1778863841000,-2930.59,0.00019968,2]
[422351530,1778863841000,-1096.81108638,0.00019899,5]
[422351528,1778863841000,-350.0,0.00019876,2]
[422351525,1778863841000,-341.41,0.000198,2]
[422351519,1778863841000,-200.0,0.00019748,2]
[422351508,1778863841000,-974.25148057,0.00019605,2]
[422351523,1778863841000,-350.0,0.00019765,3]
[422351514,1778863841000,-599.60298507,0.00019747,2]
[422351521,1778863841000,-2080.17592889,0.00019748,2]
[422351512,1778863841000,-249.87286488,0.00019746,2]
[422351536,1778863841000,-2000.0,0.00019978,2]
[422351517,1778863841000,-623.58710448,0.00019747,2]
[422351532,1778863841000,-350.0,0.00019918,2]
[422351560,1778863841000,-3870.0,0.0002,2]
[422351553,1778863841000,-158.0,0.0002,2]
[422351543,1778863841000,-300.0,0.00019999,2]
[422351549,1778863841000,-310.19961027,0.0002,30]
[422351551,1778863841000,-6111.0,0.0002,2]
[422351540,1778863841000,-300.0,0.00019999,2]
[422351545,1778863841000,-1980.0,0.0002,2]
[422351547,1778863841000,-468.62690389,0.0002,2]
[422351555,1778863841000,-409.0,0.0002,2]
[422351558,1778863841000,-3760.0,0.0002,2]
[422351568,1778863841000,-935.0,0.0002,2]
[422351570,1778863841000,-753.0,0.0002,2]
[422351510,1778863841000,-785.0,0.00019658,2]
[422351538,1778863841000,-469.54,0.00019981,2]
[422351506,1778863841000,-653.65084534,0.00019551,2]
[422351451,1778863841000,-2778.04,0.00019101,4]
[422351498,1778863841000,-839.0,0.00019336,5]
[422351564,1778863841000,-789.0,0.0002,2]
[422351449,1778863841000,-167.0,0.0001902,2]
[422351453,1778863841000,-350.0,0.00019113,4]
[422351455,1778863841000,-350.0,0.00019161,3]
[422351459,1778863841000,-209.600876,0.00019178,2]
[422351461,1778863841000,-209.600876,0.00019178,2]
[422351464,1778863841000,-209.600876,0.00019178,2]
[422351466,1778863841000,-151.0,0.00019178,2]
[422351468,1778863841000,-838.1930119,0.000192,2]
[422351470,1778863841000,-200.0,0.000192,2]
[422351474,1778863841000,-271.08680301,0.000192,2]
[422351476,1778863841000,-166.0,0.00019294,2]
[422351504,1778863841000,-247.4,0.00019515,2]
[422351472,1778863841000,-2005.9555727,0.000192,2]
[422351478,1778863841000,-300.0,0.00019299,2]
[422351482,1778863841000,-666.0,0.00019299,2]
[422351485,1778863841000,-1354.0,0.000193,2]
[422351487,1778863841000,-3542.0,0.000193,2]
[422351492,1778863841000,-1270.0,0.000193,2]
[422351494,1778863841000,-930.0,0.000193,2]
[422351489,1778863841000,-625.0,0.000193,2]
[422351490,1778863841000,-926.0,0.000193,2]
[422351496,1778863841000,-3631.0,0.000193,2]
[422351493,1778863841000,-1223.0,0.000193,2]
[422351500,1778863841000,-350.0,0.00019473,2]
[422351502,1778863841000,-469.54,0.00019494,2]
[422351480,1778863841000,-300.0,0.00019299,2]
[422351578,1778863841000,-12688.03,0.0002,2]
[422351457,1778863841000,-209.600876,0.00019178,2]
[422351562,1778863841000,-654.0,0.0002,2]
[422351647,1778863841000,-3870.0,0.00021,2]
[422351649,1778863841000,-654.0,0.00021,2]
[422351639,1778863841000,-6111.0,0.00021,2]
[422351641,1778863841000,-158.0,0.00021,2]
[422351653,1778863841000,-1792.0,0.00021,2]
[422351645,1778863841000,-3760.0,0.00021,2]
[422351643,1778863841000,-409.0,0.00021,2]
[422351655,1778863841000,-935.0,0.00021,2]
[422351651,1778863841000,-789.0,0.00021,2]
[422351657,1778863841000,-753.0,0.00021,2]
[422351659,1778863841000,-289.0,0.00021,2]
[422351662,1778863841000,-1238.0,0.00021,2]
[422351637,1778863841000,-15000.0,0.00021,2]
[422351674,1778863841000,-1368.0,0.00021,2]
[422351676,1778863841000,-474.77,0.00021,2]
[422351678,1778863841000,-200.0,0.00021392,2]
[422351664,1778863841000,-275.0,0.00021,2]
[422351668,1778863841000,-790.55,0.00021,2]
[422351681,1778863841000,-2319.72410669,0.00021392,2]
[422351683,1778863841000,-616.58611834,0.00021404,2]
[422351670,1778863841000,-933.09242569,0.00021,2]
[422351685,1778863841000,-243.67218085,0.00021545,7]
[422351666,1778863841000,-721.0,0.00021,2]
[422351687,1778863841000,-170.5705266,0.0002155,60]
[422351689,1778863841000,-1365.0,0.00021748,2]
[422351572,1778863841000,-289.0,0.0002,2]
[422351672,1778863841000,-5000.01,0.00021,2]
[422351632,1778863841000,-15000.0,0.00021,2]
[422351691,1778863841000,-300.0,0.00021799,2]
[422351630,1778863841000,-1654.03288487,0.00021,2]
[422351576,1778863841000,-275.0,0.0002,2]
[422351566,1778863841000,-1792.0,0.0002,2]
[422351574,1778863841000,-1238.0,0.0002,2]
[422351581,1778863841000,-819.596252,0.0002,2]
[422351583,1778863841000,-200.0,0.0002,10]
[422351593,1778863841000,-200.0,0.00020296,2]
[422351595,1778863841000,-2157.14243826,0.00020296,2]
[422351635,1778863841000,-6111.0,0.00021,2]
[422351585,1778863841000,-153.68370957,0.0002,20]
[422351587,1778863841000,-400.0,0.0002,2]
[422351602,1778863841000,-300.0,0.00020547,2]
[422351600,1778863841000,-469.55403821,0.00020468,2]
[422351589,1778863841000,-721.0,0.0002,2]
[422351597,1778863841000,-1312.1,0.00020381,2]
[422351608,1778863841000,-616.58611834,0.00020548,2]
[422351628,1778863841000,-300.0,0.00020999,2]
[422351591,1778863841000,-300.0,0.000201,10]
[422351626,1778863841000,-300.0,0.00020999,2]
[422351614,1778863841000,-150.0,0.000207,2]
[422351616,1778863841000,-1000.0,0.00020734,7]
[422351618,1778863841000,-350.0,0.00020748,2]
[422351624,1778863841000,-350.0,0.00020899,2]
[422351620,1778863841000,-200.0,0.00020844,2]
[422351612,1778863841000,-350.0,0.00020602,2]
[422351610,1778863841000,-314.11605028,0.00020581,2]
[422351606,1778863841000,-14053.97,0.00020548,2]
[422351604,1778863841000,-300.0,0.00020547,2]
[422351622,1778863841000,-2236.95670848,0.00020844,2]
[422351757,1778863842000,-275.0,0.00022,2]
[422351775,1778863842000,-1270.0,0.000223,2]
[422351774,1778863842000,-926.0,0.000223,2]
[422351761,1778863842000,-721.0,0.00022,2]
[422351771,1778863842000,-625.0,0.000223,2]
[422351765,1778863842000,-616.58611834,0.0002226,2]
[422351767,1778863842000,-1354.0,0.000223,2]
[422351759,1778863842000,-450.0,0.00022,2]
[422351755,1778863842000,-1238.0,0.00022,2]
[422351752,1778863842000,-289.0,0.00022,2]
[422351769,1778863842000,-3160.108,0.000223,2]
[422351777,1778863842000,-1223.0,0.000223,2]
[422351815,1778863842000,-646.65982734,0.00022486,2]
[422351792,1778863842000,-600.0,0.00022356,7]
[422351787,1778863842000,-517.02258766,0.00022356,7]
[422351786,1778863842000,-1312.1,0.00022353,2]
[422351796,1778863842000,-500.0,0.00022402,2]
[422351794,1778863842000,-1358.0,0.00022365,2]
[422351779,1778863842000,-930.0,0.000223,2]
[422351781,1778863842000,-3631.0,0.000223,2]
[422351783,1778863842000,-152.30346819,0.00022312,2]
[422351798,1778863842000,-196.54625782,0.00022407,2]
[422351800,1778863842000,-196.54625781,0.00022407,2]